[Event "SVK Extraliga 2019-20"]
[Site "Slovakia"]
[Date "2019.11.24"]
[Round "4.6"]
[White "Najgebauer, Szemjon"]
[Black "Druska, Juraj"]
[Result "0-1"]
[ECO "A46"]
[WhiteElo "2166"]
[BlackElo "2472"]
[Annotator "ChessBase"]
[PlyCount "84"]
[EventDate "2019.10.19"]
[EventType "team-tourn"]
[EventCountry "SVK"]
[SourceTitle "playchess.com"]
[Source "ChessBase"]
[SourceQuality "1"]
[WhiteTeam "Košice"]
[BlackTeam "Zilina"]
[TimeControl "40/5400+30:1800+30"]

1. d4 {[%emt 0:00:00]} Nf6 {[%emt 0:00:14]} 2. Nf3 {[%emt 0:00:38]} e6 {[%emt 0:00:41]} 3. c4 {[%emt 0:00:50]} d5 {[%emt 0:01:14]} 4. cxd5 {[%emt 0:06:08]} exd5 {[%emt 0:00:22]} 5. Bf4 {[%emt 0:00:48]} Bd6 {[%emt 0:03:42]} 6. Bxd6 {[%emt 0:06:44]} Qxd6 {[%emt 0:00:17]} 7. Nc3 {[%emt 0:00:13]} O-O {[%emt 0:08:03]} 8. e3 {[%emt 0:00:46]} Bf5 {[%emt 0:09:00]} 9. Be2 {[%emt 0:04:39]} h6 {[%emt 0:04:16]} 10. Rc1 {[%emt 0:08:13]} c6 {[%emt 0:07:06]} 11. O-O {[%emt 0:04:18]} Nbd7 {[%emt 0:00:28]} 12. a3 {[%emt 0:05:22]} Rfe8 {[%emt 0:06:33]} 13. h3 {[%emt 0:06:36]} Qe6 {[%emt 0:07:19]} 14. Re1 {[%emt 0:04:38]} a5 {[%emt 0:17:46]} 15. Bf1 {[%emt 0:06:15]} g5 {[%emt 0:06:13]} 16. Bd3 {[%emt 0:07:09]} Bxd3 {[%emt 0:01:43]} 17. Qxd3 {[%emt 0:00:12]} Ne4 {[%emt 0:00:06]} 18. Nd2 {[%emt 0:02:12]} Nxd2 {[%emt 0:15:44]} 19. Qxd2 {[%emt 0:03:39]} Nf6 {[%emt 0:00:01]} 20. f3 {[%emt 0:08:23]} Qf5 {[%emt 0:05:20]} 21. Rf1 {[%emt 0:04:00]} Qg6 {[%emt 0:00:32]} 22. Rce1 {[%emt 0:00:57]} Re7 {[%emt 0:00:06]} 23. Na4 {[%emt 0:04:39]} h5 {[%emt 0:01:40]} 24. Nc5 {[%emt 0:00:38]} g4 {[%emt 0:00:09]} 25. Nd3 {[%emt 0:05:25]} Rae8 {[%emt 0:03:02]} 26. Ne5 {[%emt 0:04:18]} Qg5 {[%emt 0:00:11]} 27. hxg4 {[%emt 0:01:24]} hxg4 {[%emt 0:00:03]} 28. Nxg4 {[%emt 0:01:12]} Nxg4 {[%emt 0:00:09]} 29. fxg4 {[%emt 0:00:17]} Rxe3 {[%emt 0:00:40]} 30. Re2 {[%emt 0:02:22]} Qe7 {[%emt 0:00:56]} 31. Ref2 {[%emt 0:00:09]} Qe6 {[%emt 0:01:22]} 32. Qxa5 {[%emt 0:00:56]} Re7 {[%emt 0:00:11]} 33. g5 {[%emt 0:01:20]} Qg4 {[%emt 0:00:32]} 34. Qd8+ {[%emt 0:00:57]} Kg7 {[%emt 0:00:10]} 35. Rf4 {[%emt 0:00:29]} Qg3 36. Qd6 {[%emt 0:00:38]} Qxg5 {[%emt 0:00:56]} 37. R4f3 {[%emt 0:00:35]} Rxf3 {[%emt 0:01:07]} 38. Rxf3 {[%emt 0:00:02]} Re1+ {[%emt 0:00:19]} 39. Kh2 {[%emt 0:00:41]} Re6 {[%emt 0:00:03]} 40. Qd7 {[%emt 0:00:47]} Rh6+ {[%emt 0:00:32]} 41. Rh3 {[%emt 0:11:12]} Qf4+ {[%emt 0:00:25]} 42. Kh1 {[%emt 0:01:22]} Re6 {[%emt 0:00:48]} 0-1

[Event "SVK Extraliga 2019-20"]
[Site "Slovakia"]
[Date "2019.11.24"]
[Round "4.6"]
[White "Bochnicka, Vladimir"]
[Black "Zambor, Norbert"]
[Result "0-1"]
[ECO "B30"]
[WhiteElo "2087"]
[BlackElo "2288"]
[Annotator "NA"]
[PlyCount "78"]
[EventDate "2019.10.19"]
[EventType "team-tourn"]
[EventCountry "SVK"]
[SourceTitle "playchess.com"]
[Source "ChessBase"]
[SourceQuality "1"]
[WhiteTeam "Bratislava"]
[BlackTeam "Prakovce"]
[TimeControl "40/5400+30:1800+30"]

1. e4 {[%emt 0:01:11]} c5 {[%emt 0:00:11]} 2. Nf3 {[%emt 0:00:08]} Nc6 {[%emt 0:00:05]} 3. Nc3 {[%emt 0:00:06]} Nf6 {[%emt 0:00:38]} 4. d4 {[%emt 0:01:56]} cxd4 {[%emt 0:00:58]} 5. Nxd4 {[%emt 0:00:07]} e5 {[%emt 0:00:07]} 6. Ndb5 {[%emt 0:00:16]} d6 {[%emt 0:00:12]} 7. Bg5 {[%emt 0:00:09]} a6 {[%emt 0:00:12]} 8. Na3 {[%emt 0:00:12]} Be6 {[%emt 0:03:39]} 9. Nc4 {[%emt 0:03:27]} Rc8 {[%emt 0:01:54]} 10. Ne3 {[%emt 0:04:03]} Be7 $11 {[%emt 0:09:07]} 11. Bxf6 {[%emt 0:04:25]} Bxf6 {[%emt 0:00:15]} 12. Ncd5 {[%emt 0:00:07]} Bg5 {[%emt 0:00:54]} 13. c3 {[%emt 0:01:19]} O-O {[%emt 0:00:50]} 14. Be2 {[%emt 0:00:35]} Ne7 {[%emt 0:02:18]} 15. Nxe7+ {[%emt 0:09:50]} Bxe7 {[%emt 0:05:10]} 16. O-O {[%emt 0:06:32]} Qb6 {[%emt 0:20:29]} 17. b3 {[%emt 0:14:59]} Rxc3 {[%emt 0:10:43]} 18. Bc4 {[%emt 0:02:24]} Rxe3 {[%emt 0:04:54]} 19. fxe3 {[%emt 0:00:06]} Qxe3+ {[%emt 0:00:50]} 20. Kh1 {[%emt 0:00:08]} Qxe4 {[%emt 0:04:55]} 21. Bxe6 {[%emt 0:01:58]} fxe6 {[%emt 0:01:52]} 22. Rxf8+ {[%emt 0:00:06]} Bxf8 {[%emt 0:10:28]} 23. Rc1 {[%emt 0:04:37]} d5 {[%emt 0:05:45]} 24. h3 {[%emt 0:02:07]} Qf5 {[%emt 0:09:13]} 25. Qe2 {[%emt 0:01:41]} e4 {[%emt 0:01:05]} 26. Rf1 {[%emt 0:00:42]} Qg6 {[%emt 0:00:18]} 27. Qf2 {[%emt 0:01:19]} Be7 {[%emt 0:02:31]} 28. Qf4 {[%emt 0:06:36]} h6 {[%emt 0:01:37]} 29. Rc1 {[%emt 0:00:36]} Kh7 {[%emt 0:00:22]} 30. Rc8 {[%emt 0:03:04]} Qf5 {[%emt 0:02:07]} 31. Qxf5+ {[%emt 0:05:40]} exf5 {[%emt 0:00:02]} 32. Rc7 {[%emt 0:00:17]} Bf6 {[%emt 0:01:39]} 33. Rc5 {[%emt 0:00:06]} e3 {[%emt 0:00:31]} 34. Rc8 {[%emt 0:03:16]} d4 {[%emt 0:00:33]} 35. Re8 {[%emt 0:00:02]} Kg6 {[%emt 0:00:34]} 36. Kg1 {[%emt 0:00:56]} d3 {[%emt 0:00:13]} 37. Kf1 {[%emt 0:00:22]} e2+ {[%emt 0:00:45]} 38. Kf2 {[%emt 0:00:03]} Bh4+ {[%emt 0:00:31]} 39. g3 {[%emt 0:00:08]} Bxg3+ {[%emt 0:00:09]} 0-1

[Event "SVK Extraliga 2019-20"]
[Site "Slovakia"]
[Date "2019.11.24"]
[Round "4.7"]
[White "Jurcik, Martin"]
[Black "Tropp, Lukas"]
[Result "1/2-1/2"]
[ECO "A15"]
[WhiteElo "2360"]
[BlackElo "2123"]
[Annotator "NA RC"]
[PlyCount "24"]
[EventDate "2019.10.19"]
[EventType "team-tourn"]
[EventCountry "SVK"]
[SourceTitle "playchess.com"]
[Source "ChessBase"]
[SourceQuality "1"]
[WhiteTeam "Zilina"]
[BlackTeam "Košice"]
[TimeControl "40/5400+30:1800+30"]

1. c4 {[%emt 0:00:00]} Nf6 {[%emt 0:01:55]} 2. Nf3 {[%emt 0:00:05]} e6 {[%emt 0:00:32]} 3. Nc3 {[%emt 0:01:31]} d5 {[%emt 0:01:33]} 4. e3 {[%emt 0:01:07]} Be7 {[%emt 0:02:21]} 5. b3 {[%emt 0:02:15]} c5 {[%emt 0:05:11]} 6. cxd5 {[%emt 0:02:46]} exd5 {[%emt 0:01:49]} 7. Bb5+ {[%emt 0:03:24]} Nc6 {[%emt 0:09:08]} 8. Bb2 {[%emt 0:06:26]} O-O {[%emt 0:06:39]} 9. Rc1 {[%emt 0:33:50]} Bg4 {[%emt 0:20:16]} 10. Bxc6 {[%emt 0:04:26]} bxc6 {[%emt 0:00:05]} 11. Na4 {[%emt 0:00:12]} Ne4 {[%emt 0:04:32]} 12. Qc2 {[%emt 0:22:52]} Bd6 {[%emt 0:17:32]} 1/2-1/2

[Event "SVK Extraliga 2019-20"]
[Site "Slovakia"]
[Date "2019.11.24"]
[Round "4.7"]
[White "Danada, Tomas"]
[Black "Bochnickova, Andrea"]
[Result "1-0"]
[ECO "A57"]
[WhiteElo "2263"]
[BlackElo "2122"]
[Annotator "NA"]
[PlyCount "81"]
[EventDate "2019.10.19"]
[EventType "team-tourn"]
[EventCountry "SVK"]
[SourceTitle "playchess.com"]
[Source "ChessBase"]
[SourceQuality "1"]
[WhiteTeam "Prakovce"]
[BlackTeam "Bratislava"]
[TimeControl "40/5400+30:1800+30"]

1. d4 {[%emt 0:00:00]} Nf6 {[%emt 0:03:22]} 2. c4 {[%emt 0:00:00]} c5 {[%emt 0:00:06]} 3. d5 {[%emt 0:00:00]} b5 {[%emt 0:00:04]} 4. Nf3 {[%emt 0:00:00]} d6 {[%emt 0:00:45]} 5. cxb5 {[%emt 0:00:07]} a6 {[%emt 0:00:08]} 6. e3 {[%emt 0:00:06]} g6 {[%emt 0:00:15]} 7. Nc3 {[%emt 0:00:07]} Bg7 {[%emt 0:00:12]} 8. a4 {[%emt 0:00:05]} O-O {[%emt 0:00:16]} 9. Ra3 {[%emt 0:00:05]} Nbd7 {[%emt 0:03:06]} ({Black should play} 9... e6 $14) 10. Qb3 $14 {[%emt 0:11:15]} Bb7 {[%emt 0:08:15]} 11. e4 {[%emt 0:05:33]} Re8 {[%emt 0:05:24]} 12. Bd3 {[%emt 0:06:22]} e6 {[%emt 0:10:26]} 13. dxe6 {[%emt 0:01:28]} Rxe6 {[%emt 0:04:12]} 14. O-O {[%emt 0:02:15]} h6 {[%emt 0:15:39]} 15. Rd1 {[%emt 0:10:15]} axb5 {[%emt 0:08:48]} 16. axb5 {[%emt 0:10:22]} Nb6 {[%emt 0:05:40]} 17. Be3 {[%emt 0:11:13]} Qe7 {[%emt 0:07:56]} 18. Rxa8+ {[%emt 0:01:21]} Bxa8 {[%emt 0:00:15]} 19. Na4 {[%emt 0:02:10]} Nxa4 {[%emt 0:08:16]} 20. Qxa4 {[%emt 0:03:51]} Bxe4 {[%emt 0:00:11]} 21. Bxe4 {[%emt 0:01:00]} Rxe4 {[%emt 0:00:04]} 22. Qa8+ {[%emt 0:04:06]} Kh7 {[%emt 0:00:25]} 23. Bd2 {[%emt 0:00:35]} Qe8 {[%emt 0:05:56]} 24. Qc6 {[%emt 0:01:52]} Qxc6 {[%emt 0:03:05]} 25. bxc6 {[%emt 0:00:04]} Re8 {[%emt 0:01:06]} 26. Ba5 {[%emt 0:04:43]} d5 {[%emt 0:01:18]} 27. c7 {[%emt 0:01:16]} Rc8 {[%emt 0:02:22]} 28. g3 {[%emt 0:07:02]} Bf8 {[%emt 0:00:30]} 29. b4 {[%emt 0:06:29]} cxb4 {[%emt 0:00:35]} 30. Nd4 {[%emt 0:00:34]} Bc5 {[%emt 0:02:40]} 31. Nb5 {[%emt 0:00:16]} b3 {[%emt 0:00:53]} 32. Rb1 {[%emt 0:01:54]} Ne4 {[%emt 0:01:24]} 33. Rxb3 {[%emt 0:01:13]} Bxf2+ {[%emt 0:00:34]} 34. Kg2 {[%emt 0:00:22]} Bc5 {[%emt 0:00:17]} 35. Rd3 {[%emt 0:01:33]} Nf6 {[%emt 0:01:18]} 36. Bc3 {[%emt 0:01:36]} Ne4 {[%emt 0:00:48]} 37. Be5 {[%emt 0:01:12]} f6 {[%emt 0:00:42]} 38. Rxd5 {[%emt 0:00:05]} fxe5 {[%emt 0:01:15]} 39. Rd7+ {[%emt 0:00:01]} Kg8 {[%emt 0:00:19]} 40. Rd8+ {[%emt 0:00:05]} Kf7 {[%emt 0:00:04]} 41. Rxc8 {[%emt 0:30:04]} 1-0

[Event "SVK Extraliga 2019-20"]
[Site "Slovakia"]
[Date "2019.11.24"]
[Round "4.7"]
[White "Federic, Jozef"]
[Black "Farkas, Gabor"]
[Result "1/2-1/2"]
[ECO "D02"]
[WhiteElo "2209"]
[BlackElo "2355"]
[Annotator "NA"]
[PlyCount "195"]
[EventDate "2019.10.19"]
[EventType "team-tourn"]
[EventCountry "SVK"]
[SourceTitle "playchess.com"]
[Source "ChessBase"]
[SourceQuality "1"]
[WhiteTeam "Modra"]
[BlackTeam "Streda"]
[TimeControl "40/5400+30:1800+30"]

1. d4 {[%emt 0:00:00]} d5 {[%emt 0:00:00]} 2. Nf3 {[%emt 0:00:00]} Nf6 {[%emt 0:00:00]} 3. g3 {[%emt 0:00:31]} c6 {[%emt 0:00:00]} 4. Bg2 {[%emt 0:00:13]} Bf5 {[%emt 0:00:02]} 5. O-O {[%emt 0:00:31]} e6 {[%emt 0:00:40]} 6. b3 {[%emt 0:03:25]} Nbd7 {[%emt 0:00:24]} 7. Bb2 {[%emt 0:00:26]} Be7 {[%emt 0:00:09]} 8. Nbd2 {[%emt 0:02:08]} O-O {[%emt 0:00:21]} 9. c4 {[%emt 0:03:06]} a5 {[%emt 0:00:12]} 10. a3 {[%emt 0:05:06]} Ne4 {[%emt 0:00:53]} 11. Rc1 {[%emt 0:08:58]} h6 {[%emt 0:00:28]} 12. Ne1 {[%emt 0:08:16]} Nxd2 {[%emt 0:00:38]} 13. Qxd2 {[%emt 0:00:02]} Nf6 {[%emt 0:00:54]} 14. Nd3 {[%emt 0:02:45]} Ne4 {[%emt 0:00:51]} 15. Qd1 {[%emt 0:00:44]} Bg5 {[%emt 0:01:55]} 16. e3 {[%emt 0:02:44]} Nd6 {[%emt 0:03:32]} 17. a4 {[%emt 0:03:19]} Be4 {[%emt 0:05:29]} 18. Ba3 {[%emt 0:01:53]} Bxg2 {[%emt 0:00:15]} 19. Kxg2 {[%emt 0:00:02]} Re8 {[%emt 0:01:01]} 20. h4 {[%emt 0:04:36]} Bf6 {[%emt 0:03:49]} 21. h5 {[%emt 0:04:56]} Be7 {[%emt 0:04:08]} 22. Ne5 {[%emt 0:08:32]} Ne4 {[%emt 0:02:03]} 23. Bxe7 {[%emt 0:00:54]} Qxe7 {[%emt 0:00:16]} 24. f3 {[%emt 0:02:10]} Nf6 {[%emt 0:00:17]} 25. g4 {[%emt 0:00:30]} Nd7 {[%emt 0:00:47]} 26. Nxd7 {[%emt 0:08:07]} Qxd7 {[%emt 0:01:14]} 27. f4 {[%emt 0:00:12]} dxc4 {[%emt 0:00:32]} 28. Rxc4 {[%emt 0:00:21]} Qd5+ {[%emt 0:05:20]} 29. Qf3 {[%emt 0:00:53]} Qxf3+ {[%emt 0:00:50]} 30. Kxf3 {[%emt 0:00:15]} Kf8 {[%emt 0:00:21]} 31. Rc5 {[%emt 0:01:20]} Ke7 {[%emt 0:00:28]} 32. g5 {[%emt 0:02:45]} Rh8 {[%emt 0:00:46]} 33. Rg1 {[%emt 0:01:15]} Ra6 {[%emt 0:06:06]} 34. gxh6 {[%emt 0:04:29]} gxh6 {[%emt 0:00:24]} 35. f5 {[%emt 0:00:24]} Rb6 {[%emt 0:01:08]} 36. Rxa5 {[%emt 0:05:36]} Rxb3 {[%emt 0:00:20]} 37. fxe6 {[%emt 0:00:13]} fxe6 {[%emt 0:03:14]} 38. Rg7+ {[%emt 0:00:17]} Kd6 {[%emt 0:01:14]} 39. Rg6 {[%emt 0:01:42]} b5 {[%emt 0:00:23]} 40. axb5 {[%emt 0:12:04]} Rxb5 {[%emt 0:00:24]} 41. Rxb5 {[%emt 0:32:31]} cxb5 {[%emt 0:30:06]} 42. Ke4 {[%emt 0:00:08]} Rc8 {[%emt 0:05:22]} 43. Rxh6 {[%emt 0:00:00]} b4 {[%emt 0:00:00]} 44. Rg6 {[%emt 0:00:00]} b3 {[%emt 0:00:00]} 45. Rg1 {[%emt 0:00:00]} Rh8 {[%emt 0:00:00]} 46. Rb1 {[%emt 0:00:00]} Rxh5 {[%emt 0:00:00]} 47. Rxb3 {[%emt 0:00:00]} Rh4+ {[%emt 0:00:00]} 48. Kd3 {[%emt 0:00:00]} Rh1 {[%emt 0:00:00]} 49. Rb6+ {[%emt 0:00:00]} Kd7 {[%emt 0:00:00]} 50. Ra6 {[%emt 0:00:00]} Rh3 {[%emt 0:00:00]} 51. Ra7+ {[%emt 0:00:00]} Kd6 {[%emt 0:00:00]} 52. Rg7 {[%emt 0:00:00]} Kd5 {[%emt 0:00:00]} 53. Rd7+ {[%emt 0:00:00]} Kc6 {[%emt 0:00:00]} 54. Rd8 {[%emt 0:00:00]} Kc7 {[%emt 0:00:00]} 55. Rf8 {[%emt 0:00:00]} Kd6 {[%emt 0:00:00]} 56. Ke4 {[%emt 0:00:00]} Rh4+ {[%emt 0:00:00]} 57. Kf3 {[%emt 0:00:00]} Rh3+ {[%emt 0:00:00]} 58. Kf4 {[%emt 0:00:00]} Rh1 {[%emt 0:00:00]} 59. Rd8+ {[%emt 0:00:00]} Ke7 {[%emt 0:00:00]} 60. Rg8 {[%emt 0:00:00]} Rf1+ {[%emt 0:00:00]} 61. Ke5 {[%emt 0:00:00]} Rf5+ {[%emt 0:00:00]} 62. Ke4 {[%emt 0:00:00]} Rh5 {[%emt 0:00:00]} 63. Rg3 {[%emt 0:00:00]} Rh1 {[%emt 0:00:00]} 64. Kf4 {[%emt 0:00:00]} Rf1+ {[%emt 0:00:00]} 65. Rf3 {[%emt 0:00:00]} Rh1 {[%emt 0:00:00]} 66. e4 {[%emt 0:00:00]} Rh4+ {[%emt 0:00:00]} 67. Ke3 {[%emt 0:00:00]} Rh1 {[%emt 0:00:00]} 68. e5 {[%emt 0:00:00]} Ra1 {[%emt 0:00:00]} 69. Rf6 {[%emt 0:00:00]} Re1+ {[%emt 0:00:00]} 70. Kd2 {[%emt 0:00:00]} Rh1 {[%emt 0:00:00]} 71. Rg6 {[%emt 0:00:00]} Rh3 {[%emt 0:00:00]} 72. Rg7+ {[%emt 0:00:00]} Ke8 {[%emt 0:00:00]} 73. Rc7 {[%emt 0:00:00]} Kd8 {[%emt 0:00:00]} 74. Rc3 {[%emt 0:00:00]} Rh1 {[%emt 0:00:00]} 75. Kd3 {[%emt 0:00:00]} Rd1+ {[%emt 0:00:00]} 76. Kc4 {[%emt 0:00:00]} Kd7 {[%emt 0:00:00]} 77. Ra3 {[%emt 0:00:00]} Rc1+ {[%emt 0:00:00]} 78. Kd3 {[%emt 0:00:00]} Rd1+ {[%emt 0:00:00]} 79. Ke3 {[%emt 0:00:00]} Re1+ {[%emt 0:00:00]} 80. Kd2 {[%emt 0:00:00]} Rh1 {[%emt 0:00:00]} 81. Ra7+ {[%emt 0:00:02]} Kc6 {[%emt 0:00:00]} 82. Ke3 {[%emt 0:00:39]} Re1+ {[%emt 0:00:00]} 83. Kf4 {[%emt 0:00:34]} Rf1+ {[%emt 0:00:00]} 84. Kg5 {[%emt 0:00:18]} Kd5 {[%emt 0:00:47]} 85. Rd7+ {[%emt 0:00:09]} Ke4 {[%emt 0:00:09]} 86. Kg6 {[%emt 0:01:01]} Rf2 {[%emt 0:00:31]} 87. Rf7 {[%emt 0:02:33]} Rh2 {[%emt 0:00:47]} 88. Kf6 {[%emt 0:02:20]} Rh6+ {[%emt 0:02:26]} 89. Kg5 {[%emt 0:05:28]} Rh1 {[%emt 0:00:37]} 90. Rd7 {[%emt 0:02:11]} Rf1 {[%emt 0:00:17]} 91. Kg6 {[%emt 0:01:45]} Rf2 {[%emt 0:00:06]} 92. Rd6 {[%emt 0:00:14]} Rf4 {[%emt 0:03:08]} 93. Rxe6 {[%emt 0:01:34]} Kxd4 {[%emt 0:00:05]} 94. Re7 {[%emt 0:06:24]} Kd5 {[%emt 0:00:32]} 95. e6 {[%emt 0:00:25]} Kd6 {[%emt 0:00:43]} 96. Re8 {[%emt 0:00:59]} Rf1 {[%emt 0:00:38]} 97. e7 {[%emt 0:00:39]} Rg1+ {[%emt 0:00:21]} 98. Kf6 {[%emt 0:00:43] Ke5+} 1/2-1/2

[Event "SVK Extraliga 2019-20"]
[Site "Slovakia"]
[Date "2019.11.24"]
[Round "4.7"]
[White "Motycakova, Monika"]
[Black "Zetocha, Claudiu"]
[Result "0-1"]
[ECO "B81"]
[WhiteElo "2130"]
[BlackElo "2299"]
[Annotator "NA"]
[PlyCount "72"]
[EventDate "2019.10.19"]
[EventType "team-tourn"]
[EventCountry "SVK"]
[SourceTitle "playchess.com"]
[Source "ChessBase"]
[SourceQuality "1"]
[WhiteTeam "Liptovska"]
[BlackTeam "Slovan"]
[TimeControl "40/5400+30:1800+30"]

1. e4 {[%emt 0:01:33]} c5 {[%emt 0:02:36]} 2. Nf3 {[%emt 0:00:06]} e6 {[%emt 0:00:07]} 3. d4 {[%emt 0:00:09]} cxd4 {[%emt 0:00:06]} 4. Nxd4 {[%emt 0:00:05]} Nf6 {[%emt 0:00:07]} 5. Nc3 {[%emt 0:00:32]} d6 {[%emt 0:00:05]} 6. g4 {[%emt 0:05:30]} h6 {[%emt 0:10:53]} 7. h4 {[%emt 0:02:08]} Nc6 {[%emt 0:05:40]} 8. Be3 {[%emt 0:01:30]} Nxd4 {[%emt 0:09:27]} 9. Bxd4 {[%emt 0:07:52]} e5 {[%emt 0:02:54]} 10. Be3 {[%emt 0:02:41]} Bxg4 {[%emt 0:02:31]} 11. f3 {[%emt 0:03:37]} Be6 {[%emt 0:03:18]} 12. Bb5+ {[%emt 0:04:14]} Nd7 {[%emt 0:14:03]} 13. Qd2 {[%emt 0:05:49]} a6 {[%emt 0:05:50]} 14. Ba4 {[%emt 0:02:01]} Be7 {[%emt 0:08:31]} 15. O-O-O {[%emt 0:03:46]} b5 {[%emt 0:05:18]} 16. Bb3 {[%emt 0:00:44]} Bxb3 {[%emt 0:01:35]} 17. axb3 {[%emt 0:05:16]} Nf6 {[%emt 0:02:14]} 18. Rhg1 {[%emt 0:12:00]} Kf8 {[%emt 0:00:53]} 19. f4 {[%emt 0:07:05]} Qc7 {[%emt 0:06:45]} 20. Qg2 {[%emt 0:06:11]} Rg8 {[%emt 0:00:35]} 21. fxe5 {[%emt 0:10:10]} dxe5 {[%emt 0:00:11]} 22. Nd5 {[%emt 0:00:08]} Qc6 {[%emt 0:06:31]} 23. Bxh6 {[%emt 0:05:54]} Ne8 {[%emt 0:03:23]} 24. Bg5 {[%emt 0:05:20]} f6 {[%emt 0:00:21]} 25. Be3 {[%emt 0:04:20]} Bc5 {[%emt 0:01:04]} 26. Bxc5+ {[%emt 0:01:18]} Qxc5 {[%emt 0:00:06]} 27. h5 {[%emt 0:00:50]} Rh8 {[%emt 0:01:05]} 28. Nxf6 {[%emt 0:02:04]} gxf6 {[%emt 0:00:12]} 29. Rd7 {[%emt 0:00:10]} Rc8 {[%emt 0:01:47]} 30. Kb1 {[%emt 0:01:06]} Rc7 {[%emt 0:00:26]} 31. Rd8 {[%emt 0:00:22]} Qe7 {[%emt 0:00:26]} 32. Ra8 {[%emt 0:00:52]} Qe6 {[%emt 0:00:25]} 33. h6 {[%emt 0:00:33]} Rxh6 {[%emt 0:00:27]} 34. Rxa6 {[%emt 0:00:33]} Qxa6 {[%emt 0:01:24]} 35. Qg8+ {[%emt 0:00:07]} Ke7 {[%emt 0:00:08]} 36. Rg7+ {[%emt 0:00:17]} Kd8 {[%emt 0:02:49]} 0-1

[Event "SVK Extraliga 2019-20"]
[Site "Slovakia"]
[Date "2019.11.24"]
[Round "4.7"]
[White "Sukuba, Zdeno"]
[Black "Vass, Frantisek"]
[Result "0-1"]
[ECO "B13"]
[WhiteElo "2111"]
[BlackElo "2310"]
[Annotator "NA"]
[PlyCount "64"]
[EventDate "2019.10.19"]
[EventType "team-tourn"]
[EventCountry "SVK"]
[SourceTitle "playchess.com"]
[Source "ChessBase"]
[SourceQuality "1"]
[WhiteTeam "Dubnica"]
[BlackTeam "Podhajska"]
[TimeControl "40/5400+30:1800+30"]

1. c4 {[%emt 0:00:00]} c6 {[%emt 0:00:00]} 2. e4 {[%emt 0:01:45]} d5 {[%emt 0:01:05]} 3. exd5 {[%emt 0:02:19]} cxd5 {[%emt 0:00:05]} 4. d4 {[%emt 0:01:56]} Nf6 {[%emt 0:01:05]} 5. Nc3 {[%emt 0:02:39]} Nc6 {[%emt 0:02:31]} 6. Bg5 {[%emt 0:05:10]} dxc4 {[%emt 0:12:46]} 7. d5 {[%emt 0:02:39]} Ne5 {[%emt 0:03:02]} 8. Qd4 {[%emt 0:01:45]} Nd3+ {[%emt 0:05:14]} 9. Bxd3 {[%emt 0:01:25]} cxd3 {[%emt 0:00:06]} 10. O-O-O {[%emt 0:14:18]} Bf5 {[%emt 0:03:44]} 11. Nf3 {[%emt 0:09:34]} h6 {[%emt 0:02:00]} 12. Bxf6 {[%emt 0:16:07]} gxf6 {[%emt 0:00:24]} 13. Rhe1 {[%emt 0:01:00]} Bg7 {[%emt 0:07:25]} 14. Qb4 {[%emt 0:03:18]} O-O {[%emt 0:16:50]} 15. Rxe7 {[%emt 0:04:11]} b6 {[%emt 0:04:58]} 16. Rde1 {[%emt 0:07:22]} Rc8 {[%emt 0:05:54]} 17. Kd1 {[%emt 0:05:27]} a5 {[%emt 0:02:02]} 18. Qf4 {[%emt 0:04:09]} Rxc3 {[%emt 0:07:30]} 19. bxc3 {[%emt 0:04:43]} Qxd5 {[%emt 0:00:10]} 20. c4 {[%emt 0:04:06]} Qc5 {[%emt 0:00:25]} 21. Nd4 {[%emt 0:02:21]} Bg6 {[%emt 0:01:40]} 22. Nb3 {[%emt 0:01:11]} Qb4 {[%emt 0:01:30]} 23. Re8 {[%emt 0:01:40]} a4 {[%emt 0:00:48]} 24. Nc1 {[%emt 0:00:33]} Qc3 {[%emt 0:00:44]} 25. Qd2 {[%emt 0:01:12]} Qxc4 {[%emt 0:00:10]} 26. Rxf8+ {[%emt 0:00:10]} Bxf8 {[%emt 0:00:40]} 27. Re8 {[%emt 0:00:44]} Kg7 {[%emt 0:00:13]} 28. Rd8 {[%emt 0:01:09]} Bb4 {[%emt 0:00:17]} 29. Qb2 {[%emt 0:00:26]} a3 {[%emt 0:07:07]} 30. Qb3 {[%emt 0:00:32]} Qg4+ {[%emt 0:00:48]} 31. f3 {[%emt 0:00:43]} Qxg2 {[%emt 0:00:03]} 32. Nxd3 {[%emt 0:00:28]} Qd2# 0-1

[Event "SVK Extraliga 2019-20"]
[Site "Slovakia"]
[Date "2019.11.24"]
[Round "4.8"]
[White "Petran, Peter"]
[Black "Macko, Michal"]
[Result "1/2-1/2"]
[ECO "A00"]
[WhiteElo "2271"]
[BlackElo "2175"]
[Annotator "NA"]
[PlyCount "92"]
[EventDate "2019.10.19"]
[EventType "team-tourn"]
[EventCountry "SVK"]
[SourceTitle "playchess.com"]
[Source "ChessBase"]
[SourceQuality "1"]
[WhiteTeam "Slovan"]
[BlackTeam "Liptovska"]
[TimeControl "40/5400+30:1800+30"]

1. g3 {[%emt 0:00:00]} c5 {[%emt 0:00:53]} 2. Bg2 {[%emt 0:00:08]} Nc6 {[%emt 0:00:13]} 3. e4 {[%emt 0:00:15]} g6 {[%emt 0:02:07]} 4. Ne2 {[%emt 0:00:25]} Bg7 {[%emt 0:00:05]} 5. c3 {[%emt 0:00:21]} e6 {[%emt 0:01:30]} 6. O-O {[%emt 0:01:25]} Nge7 {[%emt 0:00:28]} 7. d4 {[%emt 0:00:07]} cxd4 {[%emt 0:00:09]} 8. cxd4 {[%emt 0:00:06]} d5 {[%emt 0:00:07]} 9. e5 {[%emt 0:00:07]} O-O {[%emt 0:01:36]} 10. Nd2 {[%emt 0:00:44]} b6 {[%emt 0:02:33]} 11. Nf3 {[%emt 0:00:09]} Ba6 {[%emt 0:01:31]} 12. Bd2 {[%emt 0:01:57]} Nf5 {[%emt 0:08:05]} 13. Bc3 {[%emt 0:00:19]} Rb8 {[%emt 0:00:23]} 14. Bh3 {[%emt 0:00:49]} Qd7 {[%emt 0:18:06]} 15. Bxf5 {[%emt 0:00:15]} exf5 {[%emt 0:00:20]} 16. Re1 {[%emt 0:00:16]} Bxe2 {[%emt 0:00:13]} 17. Qxe2 {[%emt 0:00:25]} Nd8 {[%emt 0:00:03]} 18. Bb4 {[%emt 0:04:33]} Re8 {[%emt 0:00:12]} 19. a4 {[%emt 0:00:26]} Ne6 {[%emt 0:00:35]} 20. Qb5 {[%emt 0:01:42]} Qb7 {[%emt 0:00:54]} 21. Bd6 {[%emt 0:01:16]} Rbc8 {[%emt 0:01:16]} 22. a5 {[%emt 0:01:42]} Qc6 {[%emt 0:15:09]} 23. Qxc6 {[%emt 0:00:37]} Rxc6 {[%emt 0:01:29]} 24. axb6 {[%emt 0:00:10]} Rxb6 {[%emt 0:05:58]} 25. b4 {[%emt 0:01:33]} a6 {[%emt 0:00:56]} 26. Rec1 {[%emt 0:04:55]} Bf8 {[%emt 0:04:43]} 27. Bc5 {[%emt 0:00:27]} Rc6 {[%emt 0:00:45]} 28. h4 {[%emt 0:13:47]} h6 {[%emt 0:00:32]} 29. Ra4 {[%emt 0:02:28]} g5 {[%emt 0:12:29]} 30. hxg5 {[%emt 0:00:26]} hxg5 {[%emt 0:00:03]} 31. Rca1 {[%emt 0:00:13]} Bxc5 {[%emt 0:01:10]} 32. bxc5 {[%emt 0:00:34]} Rb8 {[%emt 0:05:36]} 33. Kg2 {[%emt 0:01:27]} Rb3 {[%emt 0:05:58]} 34. Rxa6 {[%emt 0:05:03]} Rxa6 {[%emt 0:00:13]} 35. Rxa6 {[%emt 0:00:05]} g4 {[%emt 0:00:13]} 36. Nh4 {[%emt 0:01:00]} f4 {[%emt 0:01:24]} 37. Nf5 {[%emt 0:03:40]} f3+ {[%emt 0:00:25]} 38. Kh2 {[%emt 0:02:01]} Kh7 {[%emt 0:00:23]} 39. Ne3 {[%emt 0:00:44]} Rb4 {[%emt 0:06:51]} 40. Nxg4 {[%emt 0:05:03]} Rxd4 {[%emt 0:00:15]} 41. Nf6+ {[%emt 0:32:25]} Kg6 {[%emt 0:30:23]} 42. Rd6 {[%emt 0:08:57]} Nxc5 {[%emt 0:00:00]} 43. Nxd5+ {[%emt 0:00:00]} Kf5 {[%emt 0:00:00]} 44. Ne7+ {[%emt 0:00:00]} Kxe5 {[%emt 0:00:00]} 45. Nc6+ {[%emt 0:00:00]} Kxd6 {[%emt 0:00:00]} 46. Nxd4 {[%emt 0:00:00]} Ne4 {[%emt 0:00:00]} 1/2-1/2